fUSD/lending_fUSD_20250421
["ID","MTS","AMOUNT","RATE_DAILY","PERIOD"]
[358555799,1745255310732,1000.0,0.00019266,10]
[358555800,1745255369985,3671.85,0.00018896,2]
[358555803,1745255431933,-1231.85132041,0.00019266,2]
[358555805,1745255431945,-423.90755813,0.00019266,2]
[358555807,1745255431955,-4.68384415,0.00019577,2]
[358555808,1745255431967,-295.31615585,0.00019577,2]
[358555809,1745255431976,-774.54706101,0.00019578,2]
[358555810,1745255431985,-227.87693392,0.00019578,2]
[358555811,1745255432057,-3157.6,0.00019578,2]
[358555812,1745255432068,-1265.05739738,0.00019578,2]
[358555813,1745255432077,-150.0,0.00019652,2]
[358555814,1745255432086,-250.0,0.00019652,2]
[358555815,1745255432096,-1400.0,0.000197,7]
[358555816,1745255432105,-150.0,0.00019725,2]
[358555817,1745255432117,-150.0,0.00019739,2]
[358555818,1745255432126,-2559.2925,0.00019773,2]
[358555819,1745255432135,-381.93347453,0.00019781,2]
[358555820,1745255432158,-118.06652547,0.00019781,2]
[358555821,1745255432167,-150.0,0.00019785,2]
[358555822,1745255432176,-91.3956079,0.00019785,2]
[358555823,1745255432187,-58.6043921,0.00019785,2]
[358555824,1745255432196,-150.99,0.00019785,2]
[358555825,1745255432205,-173.53436615,0.00019791,2]
[358555826,1745255432216,-540.49795588,0.00019791,2]
[358555827,1745255432231,-285.96767797,0.00019791,2]
[358555828,1745255432239,-32.70767607,0.000198,7]
[358555830,1745255432339,-1.33429377,0.000198,7]
[358555833,1745255432360,-408.29759151,0.000198,7]
[358555881,1745255436313,200.0,0.00018905,2]
[358555890,1745255438042,-628.24521807,0.000198,7]
[358555892,1745255438055,-1031.75586833,0.000198,7]
[358555893,1745255438097,-697.65935225,0.000198,7]
[358555894,1745255438106,-150.0,0.00019835,2]
[358555895,1745255438116,-221.85598252,0.00019848,2]
[358555896,1745255438127,-150.0,0.0001986,2]
[358555897,1745255438136,-156.64094308,0.00019863,2]
[358555898,1745255438145,-450.49254521,0.00019867,2]
[358555899,1745255438155,-150.0,0.00019879,2]
[358555900,1745255438164,-102.60093683,0.00019885,2]
[358555901,1745255438256,-567.20763934,0.00019885,2]
[358555902,1745255438266,-850.0,0.00019885,2]
[358555903,1745255438275,-150.0,0.00019886,2]
[358555904,1745255438284,-1644.97586641,0.00019886,2]
[358555905,1745255438295,-571.499997,0.00019886,2]
[358555906,1745255438306,-1608.7579125,0.00019886,2]
[358555907,1745255438326,-294.75112462,0.00019886,2]
[358555908,1745255438337,-2221.51659691,0.00019886,2]
[358555909,1745255438375,-6629.55800244,0.00019886,2]
[358555910,1745255438384,-555.7507,0.00019886,2]
[358555911,1745255438393,-682.0352,0.00019886,2]
[358555912,1745255438403,-15077.97368408,0.00019886,2]
[358555913,1745255438414,-778.6412826,0.00019886,2]
[358555914,1745255438425,-1312.52831791,0.00019886,2]
[358555915,1745255438437,-534.82997,0.00019886,2]
[358555916,1745255438457,-636.765059,0.00019886,2]
[358555917,1745255438469,-3669.17110976,0.00019886,2]
[358555918,1745255438486,-14161.01417665,0.00019886,2]
[358555919,1745255438496,-269.5013,0.00019886,2]
[358555920,1745255438505,-2038.7713,0.00019886,2]
[358555921,1745255438515,-2510.2322,0.00019886,2]
[358555922,1745255438524,-6316.1716,0.00019886,2]
[358555923,1745255438534,-535.8311,0.00019886,2]
[358555925,1745255438543,-1000.0,0.00019886,2]
[358555927,1745255438552,-2500.0,0.00019886,2]
[358555928,1745255438562,-150.0,0.0001989,2]
[358555929,1745255438571,-225.0,0.000199,2]
[358555930,1745255438580,-4200.0,0.000199,7]
[358555931,1745255438590,-299.93357536,0.000199,2]
[358555932,1745255438599,-171.891,0.00019915,2]
[358555933,1745255438609,-440.0,0.00019918,2]
[358555934,1745255438617,-3814.276,0.00019937,2]
[358555935,1745255438628,-150.0,0.00019938,2]
[358555936,1745255438637,-150.0,0.00019941,2]
[358555937,1745255438646,-150.0,0.0001996,2]
[358555938,1745255438656,-150.0,0.00019968,2]
[358555939,1745255438665,-160.10419983,0.00019973,2]
[358555940,1745255438674,-500.0,0.00019973,2]
[358555941,1745255438683,-500.0,0.00019973,2]
[358555942,1745255438692,-500.0,0.00019973,2]
[358555944,1745255438701,-500.0,0.00019973,2]
[358555945,1745255438713,-500.0,0.00019973,2]
[358555947,1745255438722,-3794.0030189,0.00019986,2]
[358555949,1745255438731,-84900.4104532,0.00019986,2]
[358555951,1745255438740,-10887.0157423,0.00019986,2]
[358555952,1745255438750,-1158.22165961,0.00019999,5]
[358555954,1745255438760,-1142.74083565,0.00019999,5]
[358555955,1745255438769,-211.36234878,0.00019999,2]
[358555956,1745255438780,-166.89753676,0.00019999,2]
[358555957,1745255438790,-185.52416552,0.00019999,2]
[358555958,1745255438799,-850.0,0.0002,2]
[358555959,1745255438809,-308058.1636981,0.0002,2]
[358555961,1745255438820,-999.42965019,0.0002,2]
[358555970,1745255440465,-194.01478578,0.000199,2]
[358555971,1745255440475,-12463.84605491,0.0002,2]
[358555972,1745255440486,-4741.04200654,0.0002,2]
[358555973,1745255440573,-211026.87595452,0.0002,2]
[358555974,1745255440585,-254.28777406,0.0002,2]
[358555975,1745255440597,-398.09970515,0.0002,2]
[358555976,1745255440641,-370521.90979834,0.0002,2]
[358555977,1745255440653,-25399.93623876,0.0002,2]
[358555978,1745255440664,-1049.41419005,0.0002,2]
[358555979,1745255440676,-1685.77121904,0.0002,2]
[358555980,1745255440687,-1007.52312096,0.0002,2]
[358555981,1745255440699,-946.57423126,0.0002,2]
[358555982,1745255440713,-713.97602152,0.0002,2]
[358555983,1745255440729,-1000.0,0.0002,2]
[358555984,1745255440740,-4719.28294364,0.0002,2]
[358555985,1745255440752,-34342.3652211,0.0002,2]
[358555986,1745255440776,-1705.5582732,0.0002,2]
[358555987,1745255440790,-2205.05515866,0.0002,2]
[358555988,1745255440903,-289.15000193,0.0002,2]
[358556021,1745255443214,-986.084731,0.0002,2]
[358556026,1745255443271,-3947.2055624,0.0002,2]
[358556028,1745255443282,-540.64443207,0.0002,2]
[358556031,1745255443293,-5694.39325844,0.0002,2]
[358556033,1745255443304,-805.78275374,0.0002,2]
[358556035,1745255443315,-871.21,0.0002,2]
[358556038,1745255443330,-93119.0493174,0.0002,2]
[358556040,1745255443341,-1040.31318341,0.0002,2]
[358556042,1745255443353,-456953.89795037,0.0002,2]
[358556044,1745255443362,-1250.13116265,0.0002,2]
[358556046,1745255443374,-151.0,0.0002,2]
[358556048,1745255443385,-11827.35795852,0.0002,2]
[358556050,1745255443394,-1755.01940257,0.0002,2]
[358556052,1745255443403,-151.0,0.0002,2]
[358556054,1745255443412,-151.0,0.0002,2]
[358556056,1745255443421,-151.0,0.0002,2]
[358556058,1745255443431,-151.0,0.0002,2]
[358556060,1745255443440,-151.0,0.0002,2]
[358556062,1745255443449,-151.0,0.0002,2]
[358556064,1745255443458,-300.424077,0.0002,2]
[358556066,1745255443468,-151.0,0.0002,2]
[358556068,1745255443477,-151.0,0.0002,2]
[358556070,1745255443486,-151.0,0.0002,2]
[358556072,1745255443496,-151.757063,0.0002,2]
[358556074,1745255443505,-151.0,0.0002,2]
[358556075,1745255443514,-151.0,0.0002,2]
[358556077,1745255443523,-246.48587,0.0002,2]
[358556079,1745255443532,-77526.56805055,0.0002,2]
[358556081,1745255443542,-191.84848041,0.0002,2]
[358556083,1745255443551,-2000.0,0.0002,2]
[358556085,1745255443561,-200.0,0.0002,2]
[358556087,1745255443570,-200.0,0.0002,2]
[358556089,1745255443580,-189.25,0.0002,2]
[358556091,1745255443589,-200.0,0.0002,2]
[358556093,1745255443599,-370.526952,0.0002,2]
[358556095,1745255443608,-8983.82472658,0.0002001,2]
[358556097,1745255443618,-4953.09632726,0.0002001,2]
[358556099,1745255443627,-5772.0,0.0002001,2]
[358556101,1745255443638,-951.91,0.00020067,2]
[358556103,1745255443648,-166.66,0.00020067,2]
[358556106,1745255443658,-1671.72737047,0.0002015,2]
[358556108,1745255443667,-166.66,0.00020181,2]
[358556110,1745255443677,-200.0,0.000202,2]
[358556112,1745255443686,-200.0,0.000202,2]
[358556114,1745255443696,-166.73,0.00020229,2]
[358556116,1745255443707,-500.0,0.00020384,2]
[358556118,1745255443718,-200.0,0.00020402,2]
[358556120,1745255443727,-200.0,0.00020402,2]
[358556122,1745255443737,-5324.44,0.00020548,2]
[358556124,1745255443747,-300.0,0.00020606,2]
[358556126,1745255443757,-200.0,0.00020606,2]
[358556128,1745255443766,-200.0,0.00020606,2]
[358556130,1745255443776,-21896.69256911,0.000207,2]
[358556132,1745255443786,-151.0,0.000207,2]
[358556134,1745255443797,-166.66,0.00020708,2]
[358556136,1745255443807,-200.0,0.00020812,2]
[358556137,1745255443816,-7980.19,0.00020822,2]
[358556139,1745255443826,-850.0,0.00020899,2]
[358556141,1745255443835,-2785.27,0.00020974,2]
[358556143,1745255443845,-151.0,0.00020974,2]
[358556145,1745255443854,-151.0,0.00020974,2]
[358556147,1745255443863,-151.0,0.00020974,2]
[358556149,1745255443873,-151.0,0.00020974,2]
[358556151,1745255443884,-166.66,0.00020981,2]
[358556152,1745255443893,-20000.0,0.00021,2]
[358556154,1745255443903,-1153.27437178,0.00021,2]
[358556156,1745255443912,-190.34221327,0.00021,2]
[358556158,1745255443922,-250.0,0.00021,2]
[358556160,1745255443931,-150.0,0.00021193,2]
[358556162,1745255443940,-150.0,0.00021193,2]
[358556164,1745255443950,-250.0,0.00021193,2]
[358556166,1745255443959,-191.33,0.00021194,2]
[358556168,1745255443968,-1000.0,0.00021229,2]
[358556170,1745255443978,-166.73,0.00021293,2]
[358556172,1745255443987,-166.66,0.0002135,2]
[358556173,1745255443996,-3259.09,0.0002137,2]
[358556175,1745255444006,-420.0,0.0002143,2]
[358556176,1745255444015,-1857.67,0.0002153,2]
[358556177,1745255444025,-150.0,0.00021536,2]
[358556178,1745255444034,-250.0,0.00021536,2]
[358556179,1745255444044,-252.0,0.00021667,2]
[358556180,1745255444054,-7305.61318874,0.000217,2]
[358556182,1745255444063,-166.66,0.0002178,2]
[358556184,1745255444073,-5434.0,0.000218,2]
[358556186,1745255444082,-11120.0,0.000218,2]
[358556188,1745255444092,-1926.0,0.00021918,2]
[358556190,1745255444101,-150.0,0.00021918,2]
[358556192,1745255444111,-556.0,0.00021918,2]
[358556194,1745255444120,-500.0,0.00021918,2]
[358556197,1745255444130,-199.95300181,0.00021918,2]
[358556198,1745255444140,-500.0,0.00021918,2]
[358556200,1745255444149,-150.0,0.00021918,2]
[358556202,1745255444158,-500.0,0.00021918,2]
[358556204,1745255444167,-500.0,0.00021918,2]
[358556206,1745255444177,-500.0,0.00021918,2]
[358556208,1745255444186,-151.58885993,0.00021918,2]
[358556210,1745255444195,-151.44715562,0.00021918,2]
[358556212,1745255444204,-500.0,0.00021918,2]
[358556214,1745255444213,-150.01402087,0.00021918,2]
[358556216,1745255444222,-200.0,0.00021918,2]
[358556218,1745255444232,-500.0,0.00021918,2]
[358556220,1745255444241,-500.0,0.00021918,2]
[358556221,1745255444250,-500.0,0.00021918,2]
[358556222,1745255444260,-150.0,0.00021918,2]
[358556223,1745255444269,-150.0,0.00021918,2]
[358556224,1745255444278,-150.0,0.00021918,2]
[358556225,1745255444287,-150.92758389,0.00021918,2]
[358556226,1745255444297,-150.0,0.00021918,2]
[358556227,1745255444306,-150.0,0.00021918,2]
[358556228,1745255444315,-150.0,0.00021918,2]
[358556229,1745255444325,-500.0,0.00021918,2]
[358556230,1745255444334,-1926.0,0.00021973,2]
[358556231,1745255444343,-150.0,0.00021973,2]
[358556232,1745255444352,-556.0,0.00021973,2]
[358556233,1745255444361,-500.0,0.00021973,2]
[358556234,1745255444371,-500.0,0.00021973,2]
[358556235,1745255444381,-251.95153401,0.00021973,2]
[358556236,1745255444390,-500.0,0.00021973,2]
[358556237,1745255444399,-500.0,0.00021973,2]
[358556238,1745255444408,-500.0,0.00021973,2]
[358556239,1745255444417,-514.79282043,0.00021973,2]
[358556240,1745255444426,-500.0,0.00021973,2]
[358556241,1745255444436,-500.0,0.00021973,2]
[358556242,1745255444446,-500.0,0.00021973,2]
[358556243,1745255444455,-228.00086056,0.00021973,2]
[358556244,1745255444465,-150.0,0.00021973,2]
[358556245,1745255444474,-200.0,0.00021973,2]
[358556246,1745255444483,-500.0,0.00021973,2]
[358556247,1745255444492,-300.0,0.00021975,2]
[358556248,1745255444501,-166.66,0.00021991,2]
[358556249,1745255444510,-6527.6,0.00022,2]
[358556250,1745255444519,-247.44767011,0.00022,2]
[358556251,1745255444528,-500.0,0.00022,2]
[358556252,1745255444537,-300.03,0.00022,2]
[358556253,1745255444546,-302.05,0.00022,2]
[358556254,1745255444555,-305.09,0.00022,2]
[358556255,1745255444564,-304.25,0.00022,2]
[358556256,1745255444573,-1926.0,0.00022028,2]
[358556257,1745255444582,-200.0,0.00022028,2]
[358556258,1745255444591,-556.0,0.00022028,2]
[358556259,1745255444600,-303.85266808,0.00022028,2]
[358556260,1745255444609,-388.74916245,0.00022028,2]
[358556261,1745255444619,-500.0,0.00022028,2]
[358556262,1745255444628,-500.0,0.00022028,2]
[358556263,1745255444638,-500.0,0.00022028,2]
[358556264,1745255444647,-500.0,0.00022028,2]
[358556265,1745255444657,-500.0,0.00022028,2]
[358556266,1745255444667,-500.0,0.00022028,2]
[358556267,1745255444677,-150.0,0.00022028,2]
[358556268,1745255444686,-500.0,0.00022028,2]
[358556269,1745255444695,-1926.0,0.00022082,2]
[358556270,1745255444707,-556.0,0.00022082,2]
[358556271,1745255444717,-500.0,0.00022082,2]
[358556272,1745255444726,-244.25237559,0.00022082,2]
[358556273,1745255444735,-350.0,0.00022082,2]
[358556274,1745255444745,-500.0,0.00022082,2]
[358556275,1745255444755,-500.0,0.00022082,2]
[358556276,1745255444764,-500.0,0.00022082,2]
[358556277,1745255444774,-150.0,0.00022082,2]
[358556278,1745255444784,-500.0,0.00022082,2]
[358556279,1745255444794,-231.89464304,0.0002211,2]
[358556280,1745255444803,-1926.0,0.00022137,2]
[358556281,1745255444813,-556.0,0.00022137,2]
[358556282,1745255444822,-500.0,0.00022137,2]
[358556283,1745255444832,-500.0,0.00022137,2]
[358556284,1745255444842,-500.0,0.00022137,2]
[358556285,1745255444851,-500.0,0.00022137,2]
[358556286,1745255444861,-150.0,0.00022137,2]
[358556287,1745255444870,-500.0,0.00022137,2]
[358556288,1745255444881,-1926.0,0.00022192,2]
[358556289,1745255444890,-556.0,0.00022192,2]
[358556290,1745255444899,-500.0,0.00022192,2]
[358556291,1745255444909,-500.0,0.00022192,2]
[358556292,1745255444919,-500.0,0.00022192,2]
[358556293,1745255444928,-250.0,0.00022192,2]
[358556294,1745255444938,-500.0,0.00022192,2]
[358556295,1745255444948,-1926.0,0.00022247,2]
[358556296,1745255444958,-556.0,0.00022247,2]
[358556297,1745255444968,-649.77618123,0.00022247,2]
[358556298,1745255444977,-500.0,0.00022247,2]
[358556299,1745255444986,-500.0,0.00022247,2]
[358556300,1745255444996,-1926.0,0.00022302,2]
[358556301,1745255445006,-556.0,0.00022302,2]
[358556302,1745255445016,-500.0,0.00022302,2]
[358556303,1745255445025,-489.57693001,0.00022302,2]
[358556304,1745255445037,-1926.0,0.00022356,2]
[358556305,1745255445047,-556.0,0.00022356,2]
[358556306,1745255445056,-262.61347376,0.00022356,2]
[358556307,1745255445067,-166.73,0.00022358,2]
[358556308,1745255445076,-1926.0,0.00022411,2]
[358556309,1745255445086,-556.0,0.00022411,2]
[358556310,1745255445095,-35182.0,0.00022438,2]
[358556311,1745255445104,-1926.0,0.00022466,2]
[358556312,1745255445284,-556.0,0.00022466,2]
[358556313,1745255445295,-502.45248054,0.00022473,2]
[358556314,1745255445304,-500.0,0.00022473,2]
[358556315,1745255445313,-500.0,0.00022473,2]
[358556316,1745255445323,-171.61267469,0.00022473,2]
[358556317,1745255445332,-500.0,0.00022473,2]
[358556318,1745255445342,-510.80850414,0.00022473,2]
[358556319,1745255445351,-500.0,0.00022473,2]
[358556320,1745255445360,-270.30724953,0.00022473,2]
[358556321,1745255445369,-500.0,0.00022473,2]
[358556322,1745255445379,-240.09715035,0.00022473,2]
[358556323,1745255445389,-500.0,0.00022473,2]
[358556324,1745255445398,-500.0,0.00022473,2]
[358556325,1745255445407,-34221.29557957,0.000225,2]
[358556326,1745255445417,-151.0,0.000225,7]
[358556327,1745255445427,-1926.0,0.00022521,2]
[358556328,1745255445437,-556.0,0.00022521,2]
[358556329,1745255445446,-12971.05949981,0.00022536,2]
[358556330,1745255445456,-1926.0,0.00022576,2]
[358556331,1745255445465,-556.0,0.00022576,2]
[358556332,1745255445475,-166.66,0.0002258,2]
[358556333,1745255445484,-1926.0,0.0002263,2]
[358556334,1745255445494,-556.0,0.0002263,2]
[358556335,1745255445504,-166.66,0.00022632,2]
[358556336,1745255445513,-168.044689,0.00022675,7]
[358556337,1745255445522,-151.0,0.00022675,7]
[358556338,1745255445531,-151.0,0.00022675,7]
[358556339,1745255445541,-210.67252,0.00022675,7]
[358556340,1745255445550,-225.6912,0.00022675,7]
[358556341,1745255445559,-225.6912,0.00022675,7]
[358556342,1745255445568,-1926.0,0.00022685,2]
[358556343,1745255445577,-556.0,0.00022685,2]
[358556344,1745255445587,-5563.0,0.000227,3]
[358556345,1745255445596,-504.76444723,0.0002271,2]
[358556346,1745255445606,-1926.0,0.0002274,2]
[358556347,1745255445615,-556.0,0.0002274,2]
[358556348,1745255445624,-1926.0,0.00022795,2]
[358556349,1745255445635,-556.0,0.00022795,2]
[358556350,1745255445644,-191.33,0.0002281,2]
[358556351,1745255445653,-1926.0,0.0002285,2]
[358556352,1745255445663,-556.0,0.0002285,2]
[358556353,1745255445672,-1926.0,0.00022904,2]
[358556354,1745255445681,-556.0,0.00022904,2]
[358556355,1745255445690,-1926.0,0.00022959,2]
[358556356,1745255445699,-556.0,0.00022959,2]
[358556357,1745255445714,-300.0,0.00023,2]
[358556358,1745255445723,-402.93155919,0.0002301,2]
[358556359,1745255445732,-1926.0,0.00023014,2]
[358556360,1745255445742,-556.0,0.00023014,2]
[358556361,1745255445753,-1926.0,0.00023069,2]
[358556362,1745255445762,-556.0,0.00023069,2]
[358556363,1745255445772,-1926.0,0.00023123,2]
[358556364,1745255445782,-556.0,0.00023123,2]
[358556365,1745255445793,-1935.86381959,0.00023178,2]
[358556366,1745255445802,-577.31029925,0.00023178,2]
[358556367,1745255445811,-50322.36865272,0.000232,2]
[358556368,1745255445821,-9210.0,0.00023397,2]
[358556369,1745255445831,-500.0,0.00023414,2]
[358556370,1745255445840,-166.73,0.00023423,2]
[358556371,1745255445849,-151.0,0.00023432,7]
[358556372,1745255445859,-152.58455,0.00023432,7]
[358556373,1745255445868,-151.0,0.00023432,7]
[358556374,1745255445877,-151.0,0.00023432,7]
[358556375,1745255445887,-151.0,0.00023432,7]
[358556376,1745255445896,-1697.171007,0.00023432,7]
[358556377,1745255445905,-1697.171007,0.00023432,7]
[358556378,1745255445915,-151.0,0.00023432,7]
[358556379,1745255445924,-151.0,0.00023432,7]
[358556380,1745255445933,-151.0,0.00023432,7]
[358556381,1745255445943,-151.0,0.00023432,7]
[358556382,1745255445952,-151.0,0.00023432,7]
[358556383,1745255445962,-207.06778,0.00023432,7]
[358556385,1745255445971,-225.6912,0.00023432,7]
[358556386,1745255445980,-225.6912,0.00023432,7]
[358556387,1745255445989,-287541.94520084,0.00023432,2]
[358556388,1745255445999,-587.0,0.00023457,2]
[358556389,1745255446008,-500.0,0.00023473,2]
[358556390,1745255446017,-200.0,0.000235,2]
[358556391,1745255446026,-5563.0,0.000235,5]
[358556392,1745255446035,-1000.0,0.00023587,2]
[358556393,1745255446045,-1857.67,0.00023794,2]
[358556394,1745255446054,-446.49,0.00023836,2]
[358556395,1745255446063,-5700.0,0.000239,8]
[358556396,1745255446072,-59572.97502843,0.00024,2]
[358556397,1745255446082,-151.0,0.00024,2]
[358556398,1745255446091,-81195.31737086,0.00024,2]
[358556399,1745255446102,-151.0,0.00024,7]
[358556400,1745255446111,-315.63364825,0.0002402,2]
[358556401,1745255446120,-500.0,0.00024027,2]
[358556402,1745255446129,-151.0,0.00024329,7]
[358556403,1745255446140,-2000.0,0.00024391,4]
[358556404,1745255446149,-5481.63069536,0.00024444,2]
[358556405,1745255446159,-220.957038,0.00024444,7]
[358556406,1745255446168,-151.0,0.00024444,7]
[358556407,1745255446178,-166.73,0.00024487,2]
[358556408,1745255446188,-257.42,0.00024658,4]
[358556409,1745255446197,-1000.0,0.00024658,2]
[358556410,1745255446207,-151.0,0.000248,7]
[358556411,1745255446218,-151.0,0.000248,7]
[358556412,1745255446227,-151.0,0.000248,7]
[358556413,1745255446237,-1697.171007,0.000248,7]
[358556414,1745255446246,-1697.171007,0.000248,7]
[358556415,1745255446257,-151.0,0.000248,7]
[358556416,1745255446266,-152.224711,0.000248,7]
[358556417,1745255446276,-151.0,0.000248,7]
[358556418,1745255446285,-151.0,0.000248,7]
[358556419,1745255446295,-225.6912,0.000248,7]
[358556420,1745255446304,-225.6912,0.000248,7]
[358556421,1745255446313,-151.0,0.000248,7]
[358556422,1745255446323,-86933.7260269,0.000248,2]
[358556423,1745255446332,-3654.0,0.00024877,2]
[358556424,1745255446343,-151.0,0.0002488,7]
[358556425,1745255446353,-1697.171007,0.0002488,7]
[358556426,1745255446363,-1697.171007,0.0002488,7]
[358556427,1745255446372,-156.751285,0.00024889,7]
[358556428,1745255446381,-151.0,0.0002489,7]
[358556429,1745255446391,-151.0,0.0002489,7]
[358556430,1745255446401,-151.0,0.0002489,7]
[358556431,1745255446410,-1697.171007,0.0002489,7]
[358556432,1745255446420,-1697.171007,0.0002489,7]
[358556433,1745255446430,-151.0,0.0002489,7]
[358556434,1745255446440,-151.0,0.0002489,7]
[358556435,1745255446451,-151.0,0.0002489,7]
[358556436,1745255446462,-225.6912,0.0002489,7]
[358556437,1745255446471,-225.6912,0.0002489,7]
[358556438,1745255446481,-6527.6,0.000249,2]
[358556439,1745255446492,-234.276183,0.000249,7]
[358556440,1745255446502,-151.0,0.000249,7]
[358556442,1745255446511,-151.0,0.000249,7]
[358556443,1745255446522,-151.0,0.000249,7]
[358556444,1745255446533,-151.0,0.000249,7]
[358556445,1745255446543,-151.0,0.000249,7]
[358556446,1745255446554,-151.0,0.000249,7]
[358556447,1745255446563,-151.0,0.000249,7]
[358556449,1745255446573,-1697.171007,0.000249,7]
[358556450,1745255446582,-1697.171007,0.000249,7]
[358556452,1745255446591,-151.0,0.000249,7]
[358556453,1745255446600,-151.0,0.000249,7]
[358556454,1745255446608,-151.0,0.000249,7]
[358556455,1745255446618,-225.6912,0.000249,7]
[358556456,1745255446627,-225.6912,0.000249,7]
[358556457,1745255446637,-225.6912,0.000249,7]
[358556458,1745255446646,-225.6912,0.000249,7]
[358556459,1745255446655,-151.0,0.000249,7]
[358556460,1745255446664,-152.034081,0.000249,7]
[358556461,1745255446673,-373.440968,0.000249,7]
[358556462,1745255446682,-373.440968,0.000249,7]
[358556463,1745255446691,-151.0,0.000249,7]
[358556464,1745255446700,-151.0,0.000249,7]
[358556465,1745255446711,-151.0,0.000249,7]
[358556466,1745255446720,-151.0,0.000249,7]
[358556467,1745255446729,-151.0,0.000249,7]
[358556468,1745255446738,-151.0,0.000249,7]
[358556469,1745255446748,-210.174945,0.000249,7]
[358556470,1745255446757,-210.174945,0.000249,7]
[358556471,1745255446767,-151.0,0.000249,7]
[358556472,1745255446776,-151.0,0.000249,7]
[358556473,1745255446787,-151.0,0.000249,7]
[358556474,1745255446797,-173.295316,0.000249,7]
[358556475,1745255446806,-151.0,0.000249,7]
[358556476,1745255446816,-1575.099948,0.000249,7]
[358556477,1745255446825,-151.0,0.000249,7]
[358556478,1745255446835,-1575.099948,0.000249,7]
[358556479,1745255446844,-298.12692,0.000249,7]
[358556480,1745255446853,-298.12692,0.000249,7]
[358556481,1745255446862,-7100.0,0.000249,9]
[358556482,1745255446872,-126486.46491,0.000249,2]
[358556483,1745255446881,-200.14423459,0.00025,2]
[358556484,1745255446892,-1605.37353534,0.00025,2]
[358556485,1745255446901,-256.66843729,0.00025,2]
[358556486,1745255446911,-270.22252007,0.00025,2]
[358556487,1745255446920,-200.0,0.00025,2]
[358556488,1745255446929,-1760.69690447,0.00025,2]
[358556489,1745255446938,-1026.60801732,0.00025,2]
[358556490,1745255446947,-161.33973512,0.00025,2]
[358556491,1745255446956,-2934.24242766,0.00025,2]
[358556492,1745255446966,-350.0,0.00025,2]
[358556493,1745255446977,-3258.8387644,0.000251,2]
[358556494,1745255446986,-12971.05949981,0.00025186,2]
[358556495,1745255446995,-187.0,0.000253,10]
[358556496,1745255447004,-1137.41395948,0.00025452,2]
[358556497,1745255447012,-1021.88404001,0.00025452,2]
[358556498,1745255447022,-1000.0,0.00025452,2]
[358556499,1745255447031,-166.73,0.00025552,2]
[358556500,1745255447040,-1482.0,0.00025589,2]
[358556501,1745255447049,-823.0,0.00025677,2]
[358556502,1745255447058,-1000.0,0.00025946,2]
[358556503,1745255447067,-4357.07478906,0.00026,2]
[358556504,1745255447076,-4433.65,0.00026,2]
[358556505,1745255447085,-3062.23686548,0.00026,2]
[358556506,1745255447094,-1857.67,0.00026058,2]
[358556507,1745255447102,-299.93357534,0.0002615,2]
[358556508,1745255447111,-250.0,0.00026356,2]
[358556509,1745255447120,-24651.5062599,0.000264,2]
[358556510,1745255447129,-151.0,0.000264,7]
[358556511,1745255447138,-3671.85,0.00026455,2]